fUST/lending_fUST_20251004
["ID","MTS","AMOUNT","RATE_DAILY","PERIOD"]
[389141333,1759590642551,-500.0,0.00019178,2]
[389141334,1759590642561,-500.0,0.00019178,2]
[389141335,1759590642571,-500.0,0.00019178,2]
[389141336,1759590642580,-500.0,0.00019178,2]
[389141337,1759590642590,-706.43,0.00019178,2]
[389141338,1759590642599,-500.0,0.00019178,2]
[389141339,1759590642608,-500.0,0.00019178,2]
[389141340,1759590642619,-406.22132863,0.00019178,2]
[389141341,1759590642628,-529.06,0.00019178,2]
[389141342,1759590642638,-500.0,0.00019178,2]
[389141343,1759590642648,-500.0,0.00019178,2]
[389141344,1759590642657,-500.0,0.00019178,2]
[389141345,1759590642667,-500.0,0.00019178,2]
[389141346,1759590642676,-748.01,0.00019178,2]
[389141347,1759590642685,-500.0,0.00019178,2]
[389141348,1759590642694,-500.0,0.00019178,2]
[389141349,1759590642703,-500.0,0.00019178,2]
[389141350,1759590642713,-500.0,0.00019178,2]
[389141351,1759590642722,-805.25,0.00019178,2]
[389141352,1759590642731,-500.0,0.00019178,2]
[389141353,1759590642741,-877.35,0.00019178,2]
[389141354,1759590642750,-810.89,0.00019178,2]
[389141355,1759590642763,-500.0,0.00019178,2]
[389141356,1759590642772,-500.0,0.00019178,2]
[389141357,1759590642781,-840.23,0.00019178,2]
[389141358,1759590642791,-500.0,0.00019178,2]
[389141359,1759590642800,-500.0,0.00019178,2]
[389141360,1759590642809,-500.0,0.00019178,2]
[389141361,1759590642819,-500.0,0.00019178,2]
[389141363,1759590642828,-500.0,0.00019178,2]
[389141364,1759590642837,-500.0,0.00019178,2]
[389141365,1759590642846,-500.0,0.00019178,2]
[389141366,1759590642855,-500.0,0.00019178,2]
[389141367,1759590642864,-500.0,0.00019178,2]
[389141369,1759590642874,-500.0,0.00019178,2]
[389141370,1759590642883,-460.204294,0.00019178,2]
[389141371,1759590642893,-500.0,0.00019178,2]
[389141372,1759590642902,-500.59,0.00019178,2]
[389141373,1759590642912,-500.0,0.00019178,2]
[389141374,1759590642922,-500.0,0.00019178,2]
[389141375,1759590642931,-500.0,0.00019178,2]
[389141376,1759590642941,-500.0,0.00019178,2]
[389141377,1759590642950,-500.0,0.00019178,2]
[389141378,1759590642959,-500.0,0.00019178,2]
[389141379,1759590642969,-500.0,0.00019178,2]
[389141380,1759590642979,-500.0,0.00019178,2]
[389141381,1759590642988,-500.0,0.00019178,2]
[389141382,1759590642998,-414.29671918,0.00019178,2]
[389141383,1759590643008,-500.0,0.00019178,2]
[389141384,1759590643017,-500.0,0.00019178,2]
[389141385,1759590643027,-500.0,0.00019178,2]
[389141386,1759590643037,-500.0,0.00019178,2]
[389141387,1759590643046,-500.0,0.00019178,2]
[389141388,1759590643056,-500.0,0.00019178,2]
[389141389,1759590643066,-500.0,0.00019178,2]
[389141390,1759590643075,-500.0,0.00019178,2]
[389141391,1759590643085,-500.0,0.00019178,2]
[389141392,1759590643094,-500.0,0.00019178,2]
[389141393,1759590643107,-395.23049652,0.00019178,2]
[389141395,1759590643117,-425.863081,0.00019178,2]
[389141396,1759590643127,-500.0,0.00019178,2]
[389141398,1759590643137,-500.0,0.00019178,2]
[389141400,1759590643147,-842.15,0.00019178,2]
[389141402,1759590643156,-500.0,0.00019178,2]
[389141403,1759590643165,-475.9178438,0.00019178,2]
[389141405,1759590643174,-966.97,0.00019178,2]
[389141407,1759590643184,-2848.24,0.00019178,2]
[389141408,1759590643194,-500.0,0.00019178,2]
[389141410,1759590643204,-500.0,0.00019178,2]
[389141411,1759590643213,-500.0,0.00019178,2]
[389141413,1759590643223,-1140.91,0.00019178,2]
[389141415,1759590643232,-500.0,0.00019178,2]
[389141417,1759590643242,-500.0,0.00019178,2]
[389141418,1759590643252,-500.0,0.00019178,2]
[389141420,1759590643261,-500.0,0.00019178,2]
[389141422,1759590643271,-1360.8,0.00019178,2]
[389141424,1759590643281,-500.0,0.00019178,2]
[389141425,1759590643291,-609.28,0.00019178,2]
[389141427,1759590643300,-500.0,0.00019178,2]
[389141429,1759590643310,-500.0,0.00019178,2]
[389141430,1759590643319,-500.0,0.00019178,2]
[389141432,1759590643331,-500.0,0.00019178,2]
[389141434,1759590643340,-500.0,0.00019178,2]
[389141436,1759590643351,-500.0,0.00019178,2]
[389141437,1759590643360,-500.0,0.00019178,2]
[389141439,1759590643369,-343.42999065,0.00019178,2]
[389141441,1759590643379,-310.00875174,0.00019178,2]
[389141443,1759590643388,-500.0,0.00019178,2]
[389141444,1759590643398,-500.0,0.00019178,2]
[389141446,1759590643408,-500.0,0.00019178,2]
[389141448,1759590643417,-500.0,0.00019178,2]
[389141449,1759590643427,-645.8,0.00019178,2]
[389141450,1759590643436,-500.0,0.00019178,2]
[389141451,1759590643445,-426.29412645,0.00019178,2]
[389141452,1759590643455,-500.0,0.00019178,2]
[389141453,1759590643465,-977.77,0.00019178,2]
[389141454,1759590643475,-958.93,0.00019178,2]
[389141455,1759590643485,-500.0,0.00019178,2]
[389141456,1759590643495,-500.0,0.00019178,2]
[389141457,1759590643505,-500.0,0.00019178,2]
[389141458,1759590643515,-500.0,0.00019178,2]
[389141459,1759590643524,-500.0,0.00019178,2]
[389141460,1759590643534,-1323.11,0.00019178,2]
[389141461,1759590643543,-500.0,0.00019178,2]
[389141462,1759590643553,-500.0,0.00019178,2]
[389141463,1759590643563,-500.0,0.00019178,2]
[389141464,1759590643572,-500.0,0.00019178,2]
[389141465,1759590643582,-500.0,0.00019178,2]
[389141466,1759590643591,-500.0,0.00019178,2]
[389141467,1759590643601,-1856.22,0.00019178,2]
[389141468,1759590643611,-445.84082164,0.00019178,2]
[389141469,1759590643621,-1749.05,0.00019178,2]
[389141470,1759590643631,-500.0,0.00019178,2]
[389141471,1759590643640,-768.13,0.00019178,2]
[389141472,1759590643650,-500.0,0.00019178,2]
[389141473,1759590643659,-500.0,0.00019178,2]
[389141474,1759590643668,-500.0,0.00019178,2]
[389141475,1759590643677,-500.0,0.00019178,2]
[389141476,1759590643687,-500.0,0.00019178,2]
[389141477,1759590643696,-500.0,0.00019178,2]
[389141478,1759590643706,-500.0,0.00019178,2]
[389141479,1759590643715,-500.0,0.00019178,2]
[389141480,1759590643726,-500.0,0.00019178,2]
[389141481,1759590643736,-500.0,0.00019178,2]
[389141483,1759590643745,-500.0,0.00019178,2]
[389141487,1759590643755,-500.0,0.00019178,2]
[389141488,1759590643915,-500.0,0.00019178,2]
[389141489,1759590643926,-500.0,0.00019178,2]
[389141490,1759590643935,-500.0,0.00019178,2]
[389141491,1759590643944,-500.0,0.00019178,2]
[389141492,1759590643954,-500.0,0.00019178,2]
[389141493,1759590643963,-500.0,0.00019178,2]
[389141494,1759590643973,-500.0,0.00019178,2]
[389141495,1759590643983,-500.0,0.00019178,2]
[389141496,1759590643993,-500.0,0.00019178,2]
[389141497,1759590644002,-500.0,0.00019178,2]
[389141498,1759590644012,-500.0,0.00019178,2]
[389141499,1759590644021,-500.0,0.00019178,2]
[389141500,1759590644031,-500.0,0.00019178,2]
[389141501,1759590644040,-500.0,0.00019178,2]
[389141502,1759590644050,-317.2352109,0.00019178,2]
[389141503,1759590644059,-500.0,0.00019178,2]
[389141504,1759590644069,-500.0,0.00019178,2]
[389141505,1759590644078,-732.2,0.00019178,2]
[389141506,1759590644088,-500.0,0.00019178,2]
[389141507,1759590644097,-500.0,0.00019178,2]
[389141508,1759590644109,-378.50053142,0.00019178,2]
[389141509,1759590644119,-186.93841996,0.00019178,2]
[389141510,1759590644129,-500.0,0.00019178,2]
[389141511,1759590644139,-1738.11,0.00019178,2]
[389141512,1759590644148,-500.0,0.00019178,2]
[389141513,1759590644157,-500.0,0.00019178,2]
[389141514,1759590644167,-634.95716363,0.00019178,2]
[389141515,1759590644177,-500.0,0.00019178,2]
[389141516,1759590644186,-500.0,0.00019178,2]
[389141517,1759590644196,-500.0,0.00019178,2]
[389141518,1759590644206,-3015.62,0.00019178,2]
[389141519,1759590644215,-500.0,0.00019178,2]
[389141520,1759590644225,-1097.18,0.00019178,2]
[389141521,1759590644235,-500.0,0.00019178,2]
[389141522,1759590644245,-500.0,0.00019178,2]
[389141523,1759590644255,-500.0,0.00019178,2]
[389141524,1759590644264,-500.0,0.00019178,2]
[389141525,1759590644274,-500.0,0.00019178,2]
[389141526,1759590644283,-1095.04,0.00019178,2]
[389141527,1759590644293,-500.0,0.00019178,2]
[389141528,1759590644302,-500.0,0.00019178,2]
[389141529,1759590644312,-500.0,0.00019178,2]
[389141530,1759590644322,-3353.07,0.00019178,2]
[389141531,1759590644332,-500.0,0.00019178,2]
[389141532,1759590644343,-500.0,0.00019178,2]
[389141533,1759590644353,-500.0,0.00019178,2]
[389141534,1759590644363,-394.9443272,0.00019178,2]
[389141535,1759590644374,-435.7116071,0.00019178,2]
[389141536,1759590644383,-500.0,0.00019178,2]
[389141537,1759590644393,-500.0,0.00019178,2]
[389141538,1759590644403,-979.87,0.00019178,2]
[389141539,1759590644413,-500.0,0.00019178,2]
[389141540,1759590644423,-500.0,0.00019178,2]
[389141541,1759590644432,-500.0,0.00019178,2]
[389141542,1759590644442,-486.01702292,0.00019178,2]
[389141543,1759590644452,-556.58,0.00019178,2]
[389141544,1759590644462,-500.0,0.00019178,2]
[389141545,1759590644471,-500.0,0.00019178,2]
[389141546,1759590644482,-500.0,0.00019178,2]
[389141547,1759590644491,-500.0,0.00019178,2]
[389141548,1759590644501,-500.0,0.00019178,2]
[389141549,1759590644511,-500.0,0.00019178,2]
[389141550,1759590644521,-500.0,0.00019178,2]
[389141551,1759590644530,-500.0,0.00019178,2]
[389141552,1759590644540,-596.56905718,0.00019178,2]
[389141553,1759590644550,-495.78442434,0.00019178,2]
[389141554,1759590644560,-500.0,0.00019178,2]
[389141555,1759590644570,-602.05,0.00019178,2]
[389141556,1759590644580,-2444.68,0.00019178,2]
[389141557,1759590644590,-669.17,0.00019178,2]
[389141558,1759590644599,-700.63,0.00019178,2]
[389141559,1759590644610,-500.0,0.00019178,2]
[389141560,1759590644619,-500.0,0.00019178,2]
[389141561,1759590644629,-500.0,0.00019178,2]
[389141562,1759590644639,-500.0,0.00019178,2]
[389141563,1759590644649,-1487.34,0.00019178,2]
[389141564,1759590644658,-500.0,0.00019178,2]
[389141565,1759590644668,-500.0,0.00019178,2]
[389141566,1759590644677,-500.0,0.00019178,2]
[389141567,1759590644687,-500.0,0.00019178,2]
[389141568,1759590644697,-500.0,0.00019178,2]
[389141569,1759590644707,-500.0,0.00019178,2]
[389141570,1759590644717,-500.0,0.00019178,2]
[389141571,1759590644727,-500.0,0.00019178,2]
[389141572,1759590644737,-500.0,0.00019178,2]
[389141573,1759590644747,-500.0,0.00019178,2]
[389141574,1759590644756,-500.0,0.00019178,2]
[389141575,1759590644766,-500.0,0.00019178,2]
[389141576,1759590644776,-500.0,0.00019178,2]
[389141577,1759590644785,-500.0,0.00019178,2]
[389141578,1759590644795,-500.0,0.00019178,2]
[389141579,1759590644805,-500.0,0.00019178,2]
[389141580,1759590644814,-500.0,0.00019178,2]
[389141581,1759590644824,-501.72,0.00019178,2]
[389141582,1759590644835,-809.98,0.00019178,2]
[389141583,1759590644846,-3003.58,0.00019178,2]
[389141584,1759590644855,-4041.89,0.00019178,2]
[389141585,1759590644865,-500.0,0.00019178,2]
[389141586,1759590644875,-500.0,0.00019178,2]
[389141587,1759590644885,-500.0,0.00019178,2]
[389141588,1759590644895,-500.0,0.00019178,2]
[389141589,1759590644905,-588.7,0.00019178,2]
[389141590,1759590644915,-500.0,0.00019178,2]
[389141591,1759590644924,-1598.11,0.00019178,2]
[389141592,1759590644934,-500.0,0.00019178,2]
[389141593,1759590644943,-500.0,0.00019178,2]
[389141594,1759590644953,-500.0,0.00019178,2]
[389141595,1759590644962,-485.50639329,0.00019178,2]
[389141596,1759590644972,-500.0,0.00019178,2]
[389141597,1759590644982,-542.75,0.00019178,2]
[389141598,1759590644992,-1068.6,0.00019178,2]
[389141599,1759590645001,-500.0,0.00019178,2]
[389141600,1759590645012,-343.3901885,0.00019178,2]
[389141601,1759590645022,-500.0,0.00019178,2]
[389141602,1759590645031,-500.0,0.00019178,2]
[389141603,1759590645041,-500.0,0.00019178,2]
[389141604,1759590645051,-500.0,0.00019178,2]
[389141605,1759590645060,-380.18458338,0.00019178,2]
[389141606,1759590645070,-2368.12,0.00019178,2]
[389141607,1759590645079,-548.65,0.00019178,2]
[389141608,1759590645089,-500.0,0.00019178,2]
[389141609,1759590645098,-1050.17,0.00019178,2]
[389141610,1759590645111,-1054.69,0.00019178,2]
[389141611,1759590645120,-500.0,0.00019178,2]
[389141612,1759590645130,-489.61416106,0.00019178,2]
[389141613,1759590645139,-786.24,0.00019178,2]
[389141614,1759590645150,-500.0,0.00019178,2]
[389141615,1759590645160,-1829.47,0.00019178,2]
[389141616,1759590645169,-300.86542138,0.00019178,2]
[389141617,1759590645181,-791.1,0.00019178,2]
[389141618,1759590645194,-500.0,0.00019178,2]
[389141619,1759590645203,-3023.99,0.00019178,2]
[389141620,1759590645212,-500.0,0.00019178,2]
[389141621,1759590645222,-647.62,0.00019178,2]
[389141622,1759590645232,-500.0,0.00019178,2]
[389141623,1759590645242,-500.0,0.00019178,2]
[389141624,1759590645251,-500.0,0.00019178,2]
[389141625,1759590645261,-500.0,0.00019178,2]
[389141626,1759590645270,-500.0,0.00019178,2]
[389141627,1759590645280,-1868.16,0.00019178,2]
[389141628,1759590645290,-947.44,0.00019178,2]
[389141629,1759590645300,-1195.72,0.00019178,2]
[389141630,1759590645309,-500.0,0.00019178,2]
[389141631,1759590645319,-500.0,0.00019178,2]
[389141632,1759590645328,-500.0,0.00019178,2]
[389141633,1759590645338,-594.18,0.00019178,2]
[389141634,1759590645348,-1450.46,0.00019178,2]
[389141635,1759590645359,-500.0,0.00019178,2]
[389141636,1759590645369,-500.0,0.00019178,2]
[389141637,1759590645378,-500.0,0.00019178,2]
[389141638,1759590645388,-500.0,0.00019178,2]
[389141639,1759590645399,-500.0,0.00019178,2]
[389141640,1759590645408,-500.0,0.00019178,2]
[389141641,1759590645419,-500.0,0.00019178,2]
[389141642,1759590645429,-1341.41,0.00019178,2]
[389141643,1759590645438,-503.24,0.00019178,2]
[389141644,1759590645448,-2415.19,0.00019178,2]
[389141645,1759590645458,-4325.59,0.00019178,2]
[389141646,1759590645469,-500.0,0.00019178,2]
[389141647,1759590645479,-500.0,0.00019178,2]
[389141648,1759590645489,-500.0,0.00019178,2]
[389141649,1759590645499,-2117.6,0.00019178,2]
[389141650,1759590645509,-500.0,0.00019178,2]
[389141651,1759590645519,-616.75,0.00019178,2]
[389141652,1759590645530,-500.0,0.00019178,2]
[389141653,1759590645541,-894.18,0.00019178,2]
[389141654,1759590645552,-500.0,0.00019178,2]
[389141655,1759590645563,-500.0,0.00019178,2]
[389141656,1759590645574,-500.0,0.00019178,2]
[389141657,1759590645584,-500.0,0.00019178,2]
[389141658,1759590645594,-500.0,0.00019178,2]
[389141659,1759590645604,-6808.25,0.00019178,2]
[389141660,1759590645616,-646.89,0.00019178,2]
[389141661,1759590645626,-500.0,0.00019178,2]
[389141662,1759590645636,-500.0,0.00019178,2]
[389141663,1759590645646,-1219.82,0.00019178,2]
[389141664,1759590645656,-576.19,0.00019178,2]
[389141665,1759590645667,-766.0,0.00019178,2]
[389141666,1759590645677,-500.0,0.00019178,2]
[389141667,1759590645687,-500.0,0.00019178,2]
[389141668,1759590645697,-501.11,0.00019178,2]
[389141669,1759590645707,-500.0,0.00019178,2]
[389141670,1759590645716,-500.0,0.00019178,2]
[389141671,1759590645726,-838.57,0.00019178,2]
[389141672,1759590645736,-500.0,0.00019178,2]
[389141673,1759590645745,-1612.24,0.00019178,2]
[389141674,1759590645754,-500.0,0.00019178,2]
[389141676,1759590645764,-500.0,0.00019178,2]
[389141677,1759590645773,-500.0,0.00019178,2]
[389141678,1759590645783,-500.0,0.00019178,2]
[389141679,1759590645793,-500.0,0.00019178,2]
[389141680,1759590645803,-500.0,0.00019178,2]
[389141681,1759590645813,-500.0,0.00019178,2]
[389141682,1759590645823,-500.0,0.00019178,2]
[389141683,1759590645833,-500.0,0.00019178,2]
[389141684,1759590645842,-500.0,0.00019178,2]
[389141685,1759590645852,-500.0,0.00019178,2]
[389141686,1759590645866,-1409.27,0.00019178,2]
[389141687,1759590645875,-500.0,0.00019178,2]
[389141688,1759590645885,-466.96776007,0.00019178,2]
[389141689,1759590645897,-1345.42,0.00019178,2]
[389141690,1759590645907,-990.0,0.00019178,2]
[389141691,1759590645919,-500.0,0.00019178,2]
[389141692,1759590645931,-500.0,0.00019178,2]
[389141693,1759590645941,-500.0,0.00019178,2]
[389141694,1759590645951,-923.15,0.00019178,2]
[389141695,1759590645961,-500.0,0.00019178,2]
[389141697,1759590645970,-1493.73,0.00019178,2]
[389141698,1759590645979,-500.0,0.00019178,2]
[389141699,1759590645989,-500.0,0.00019178,2]
[389141700,1759590645999,-500.0,0.00019178,2]
[389141701,1759590646009,-500.0,0.00019178,2]
[389141702,1759590646018,-500.0,0.00019178,2]
[389141703,1759590646030,-500.0,0.00019178,2]
[389141704,1759590646040,-1082.9,0.00019178,2]
[389141705,1759590646050,-542.59,0.00019178,2]
[389141706,1759590646060,-500.0,0.00019178,2]
[389141707,1759590646069,-500.0,0.00019178,2]
[389141708,1759590646080,-300.31075032,0.00019178,2]
[389141710,1759590646090,-500.0,0.00019178,2]
[389141712,1759590646099,-1072.6,0.00019178,2]
[389141713,1759590646113,-500.0,0.00019178,2]
[389141714,1759590646122,-1043.25,0.00019178,2]
[389141715,1759590646132,-500.0,0.00019178,2]
[389141716,1759590646141,-1131.17,0.00019178,2]
[389141717,1759590646151,-2361.16,0.00019178,2]
[389141718,1759590646160,-500.0,0.00019178,2]
[389141719,1759590646169,-500.0,0.00019178,2]
[389141720,1759590646179,-5225.58,0.00019178,2]
[389141721,1759590646188,-500.0,0.00019178,2]
[389141722,1759590646198,-500.0,0.00019178,2]
[389141723,1759590646207,-500.0,0.00019178,2]
[389141724,1759590646217,-500.0,0.00019178,2]
[389141725,1759590646227,-500.0,0.00019178,2]
[389141726,1759590646236,-385.68224796,0.00019178,2]
[389141727,1759590646246,-500.0,0.00019178,2]
[389141728,1759590646255,-500.0,0.00019178,2]
[389141729,1759590646264,-500.0,0.00019178,2]
[389141730,1759590646274,-500.0,0.00019178,2]
[389141731,1759590646283,-1448.44,0.00019178,2]
[389141732,1759590646293,-511.73,0.00019178,2]
[389141733,1759590646302,-632.45,0.00019178,2]
[389141734,1759590646312,-500.0,0.00019178,2]
[389141735,1759590646322,-606.37,0.00019178,2]
[389141736,1759590646332,-500.0,0.00019178,2]
[389141737,1759590646342,-500.0,0.00019178,2]
[389141739,1759590646398,-500.0,0.00019178,2]
[389141740,1759590646408,-1452.17,0.00019178,2]
[389141741,1759590646418,-500.0,0.00019178,2]
[389141742,1759590646427,-647.03,0.00019178,2]
[389141743,1759590646437,-500.0,0.00019178,2]
[389141744,1759590646446,-500.0,0.00019178,2]
[389141745,1759590646455,-6915.55,0.00019178,2]
[389141746,1759590646465,-500.0,0.00019178,2]
[389141747,1759590646475,-500.0,0.00019178,2]
[389141748,1759590646485,-500.0,0.00019178,2]
[389141749,1759590646494,-500.0,0.00019178,2]
[389141750,1759590646503,-500.0,0.00019178,2]
[389141751,1759590646513,-2266.98,0.00019178,2]
[389141752,1759590646522,-500.0,0.00019178,2]
[389141753,1759590646532,-3328.29,0.00019178,2]
[389141754,1759590646542,-500.0,0.00019178,2]
[389141755,1759590646551,-500.0,0.00019178,2]
[389141756,1759590646561,-500.0,0.00019178,2]
[389141757,1759590646571,-500.0,0.00019178,2]
[389141758,1759590646580,-500.0,0.00019178,2]
[389141759,1759590646589,-500.0,0.00019178,2]
[389141760,1759590646598,-500.0,0.00019178,2]
[389141761,1759590646609,-1023.24,0.00019178,2]
[389141762,1759590646619,-500.0,0.00019178,2]
[389141763,1759590646628,-500.0,0.00019178,2]
[389141764,1759590646639,-1262.25,0.00019178,2]
[389141765,1759590646648,-500.0,0.00019178,2]
[389141766,1759590646658,-500.0,0.00019178,2]
[389141767,1759590646667,-500.0,0.00019178,2]
[389141768,1759590646677,-500.0,0.00019178,2]
[389141769,1759590646686,-500.0,0.00019178,2]
[389141770,1759590646695,-500.0,0.00019178,2]
[389141771,1759590646705,-500.0,0.00019178,2]
[389141772,1759590646714,-6120.99,0.00019178,2]
[389141773,1759590646724,-3854.46,0.00019178,2]
[389141774,1759590646733,-632.01,0.00019178,2]
[389141775,1759590646743,-500.0,0.00019178,2]
[389141776,1759590646752,-500.0,0.00019178,2]
[389141777,1759590646762,-500.0,0.00019178,2]
[389141778,1759590646771,-500.0,0.00019178,2]
[389141779,1759590646781,-500.0,0.00019178,2]
[389141780,1759590646801,-500.0,0.00019178,2]
[389141781,1759590646812,-500.0,0.00019178,2]
[389141782,1759590646822,-500.0,0.00019178,2]
[389141783,1759590646832,-500.0,0.00019178,2]
[389141784,1759590646843,-324.07,0.00019178,2]
[389141785,1759590646853,-500.0,0.00019178,2]
[389141786,1759590646863,-376.47218512,0.00019178,2]
[389141787,1759590646873,-500.0,0.00019178,2]
[389141788,1759590646883,-500.0,0.00019178,2]
[389141789,1759590646892,-1031.38,0.00019178,2]
[389141790,1759590646901,-500.0,0.00019178,2]
[389141791,1759590646911,-1428.16,0.00019178,2]
[389141792,1759590646921,-1606.82,0.00019178,2]
[389141793,1759590646931,-917.5,0.00019178,2]
[389141794,1759590646940,-4600.4,0.00019178,2]
[389141795,1759590646950,-500.0,0.00019178,2]
[389141796,1759590646961,-551.75,0.00019178,2]
[389141797,1759590646971,-821.33,0.00019178,2]
[389141798,1759590646981,-500.0,0.00019178,2]
[389141799,1759590646992,-500.0,0.00019178,2]
[389141800,1759590647002,-500.0,0.00019178,2]
[389141801,1759590647012,-500.0,0.00019178,2]
[389141802,1759590647021,-5000.0,0.00019178,2]
[389141803,1759590647031,-5000.0,0.00019178,2]
[389141804,1759590647041,-150.0,0.00019178,2]
[389141805,1759590647050,-363.0,0.00019186,2]
[389141806,1759590647060,-151.0,0.000192,2]
[389141807,1759590647070,-151.0,0.000192,2]
[389141808,1759590647080,-176.84945531,0.000192,2]
[389141809,1759590647090,-5000.0,0.00019297,2]
[389141810,1759590647099,-151.0,0.000193,2]
[389141811,1759590647112,-151.0,0.000193,2]
[389141812,1759590647122,-151.0,0.000193,2]
[389141813,1759590647131,-300.0,0.00019315,2]
[389141814,1759590647141,-1000.0,0.0001932,2]
[389141815,1759590647151,-1000.0,0.0001932,2]
[389141816,1759590647161,-339.6512173,0.0001932,2]
[389141817,1759590647172,-250.0,0.0001932,2]
[389141818,1759590647182,-166.0,0.0001932,2]
[389141819,1759590647192,-151.0,0.0001932,2]
[389141820,1759590647202,-250.0,0.0001932,2]
[389141821,1759590647211,-250.0,0.0001932,2]
[389141822,1759590647221,-250.0,0.0001932,2]
[389141823,1759590647231,-500.0,0.0001932,2]
[389141824,1759590647240,-500.0,0.0001932,2]
[389141825,1759590647250,-500.0,0.0001932,2]
[389141826,1759590647259,-500.0,0.0001932,2]
[389141827,1759590647269,-500.0,0.0001932,2]
[389141828,1759590647279,-500.0,0.0001932,2]
[389141829,1759590647289,-500.0,0.0001932,2]
[389141830,1759590647298,-500.0,0.0001932,2]
[389141831,1759590647308,-500.0,0.0001932,2]
[389141832,1759590647317,-331.00157929,0.0001932,2]
[389141833,1759590647327,-10453.01450712,0.00019337,2]
[389141834,1759590647336,-500.0,0.00019353,2]
[389141835,1759590647345,-436.0,0.00019367,2]
[389141836,1759590647355,-500.0,0.00019385,2]
[389141837,1759590647365,-151.0,0.000194,2]
[389141838,1759590647375,-151.0,0.000194,2]
[389141839,1759590647384,-1000.0,0.00019421,2]
[389141840,1759590647394,-1000.0,0.00019421,2]
[389141841,1759590647404,-1000.0,0.00019421,2]
[389141842,1759590647414,-1000.0,0.00019421,2]
[389141843,1759590647424,-1000.0,0.00019421,2]
[389141844,1759590647434,-1000.0,0.00019421,2]
[389141845,1759590647443,-1000.0,0.00019421,2]
[389141846,1759590647452,-1000.0,0.00019421,2]
[389141847,1759590647462,-3951.13015372,0.00019451,2]
[389141848,1759590647472,-500.0,0.00019452,2]
[389141849,1759590647482,-500.0,0.00019452,2]
[389141850,1759590647492,-500.0,0.00019452,2]
[389141851,1759590647507,-500.0,0.00019452,2]
[389141852,1759590647517,-500.0,0.00019452,2]
[389141853,1759590647527,-500.0,0.00019452,2]
[389141854,1759590647538,-175.43988461,0.00019452,2]
[389141855,1759590647548,-570.2,0.00019452,2]
[389141856,1759590647558,-500.0,0.00019452,2]
[389141857,1759590647568,-500.0,0.00019452,2]
[389141858,1759590647579,-500.0,0.00019452,2]
[389141859,1759590647589,-462.30280547,0.00019452,2]
[389141860,1759590647600,-500.0,0.00019452,2]
[389141861,1759590647610,-851.18,0.00019452,2]
[389141862,1759590647620,-500.0,0.00019452,2]
[389141863,1759590647630,-500.0,0.00019452,2]
[389141864,1759590647640,-500.0,0.00019452,2]
[389141865,1759590647650,-355.73715322,0.00019452,2]
[389141866,1759590647660,-500.0,0.00019452,2]